bitfinex-derivatives/quotes_BTCF0:USTF0_20260314
["timestamp","ask_amount","ask_price","bid_price","bid_amount"]
[1773508530724,0.2014,70741.0,70733.0,0.042401]
[1773508533623,0.0014,70740.0,70733.0,0.042401]
[1773508536027,0.2,70741.0,70733.0,0.042401]
[1773508537522,0.02083898,70753.0,70730.0,0.07381628]
[1773508537728,0.02083898,70753.0,70740.0,0.042397]
[1773508537924,0.0014,70753.0,70740.0,0.07381628]
[1773508538222,0.0014,70753.0,70743.0,0.042395]
[1773508538429,0.02223898,70753.0,70743.0,0.042395]
[1773508539427,0.02323898,70753.0,70743.0,0.042395]
[1773508540019,0.02223898,70753.0,70743.0,0.042395]
[1773508544932,0.0014,70753.0,70743.0,0.042395]
[1773508552237,0.0014,70753.0,70735.0,0.0014]
[1773508552538,0.0014,70753.0,70741.0,0.01364204]
[1773508553332,0.1704888,70762.0,70741.0,0.01364204]
[1773508553540,0.0014,70761.0,70741.0,0.01364204]
[1773508553840,0.19227688,70762.0,70741.0,0.01364204]
[1773508554031,0.0014,70760.0,70745.0,0.042394]
[1773508554434,0.0014,70759.0,70745.0,0.042394]
[1773508555039,0.0014,70758.0,70745.0,0.042394]
[1773508555541,0.0014,70757.0,70745.0,0.042394]
[1773508556037,0.0014,70756.0,70745.0,0.042394]
[1773508556438,0.0014,70755.0,70745.0,0.042394]
[1773508556738,0.0014,70754.0,70745.0,0.042394]
[1773508556940,0.0014,70753.0,70745.0,0.042394]
[1773508557134,0.0014,70752.0,70745.0,0.042394]
[1773508557339,0.19227688,70762.0,70745.0,0.042394]
[1773508557643,0.0014,70761.0,70745.0,0.042394]
[1773508557940,0.0014,70760.0,70745.0,0.042394]
[1773508558442,0.0014,70759.0,70745.0,0.042394]
[1773508558941,0.0014,70758.0,70745.0,0.042394]
[1773508559346,0.042385,70761.0,70746.0,0.042394]
[1773508559539,0.0014,70760.0,70746.0,0.042394]
[1773508559942,0.0014,70759.0,70746.0,0.042394]
[1773508560544,0.0014,70758.0,70746.0,0.042394]
[1773508562445,0.0014,70757.0,70746.0,0.042394]
[1773508562942,0.0014,70757.0,70741.0,0.01364204]
[1773508562943,0.02178808,70766.0,70741.0,0.01364204]
[1773508563441,0.02178808,70766.0,70740.0,0.07381628]
[1773508563442,0.02178808,70757.0,70722.0,0.25440988]
[1773508563645,0.07381628,70740.0,70734.0,0.042401]
[1773508563945,0.0014,70743.0,70734.0,0.042401]
[1773508564442,0.0014,70743.0,70735.0,0.0424]
[1773508567045,0.0014,70743.0,70733.0,0.042402]
[1773508567247,0.0098778,70743.0,70733.0,0.042402]
[1773508567834,0.0098778,70743.0,70712.0,0.042414]
[1773508567835,0.10548216,70743.0,70726.0,0.0014]
[1773508568039,0.10548216,70743.0,70730.0,0.042403]
[1773508568234,0.03166588,70743.0,70730.0,0.042403]
[1773508568944,0.03166588,70743.0,70734.0,0.042401]
[1773508569140,0.0098778,70743.0,70734.0,0.042401]
[1773508580453,0.0014,70743.0,70734.0,0.042401]
[1773508580656,0.0084778,70741.0,70734.0,0.042401]
[1773508582455,0.0084778,70741.0,70735.0,0.0424]
[1773508585762,0.0014,70743.0,70735.0,0.0424]
[1773508594161,0.02286749,70772.0,70733.0,0.11622475]
[1773508594362,0.02286749,70758.0,70731.0,0.16935562]
[1773508594575,0.02286749,70756.0,70732.0,0.0014]
[1773508595064,0.02292275,70753.0,70740.0,0.042397]
[1773508597758,0.06531275,70753.0,70740.0,0.042397]
[1773508597959,0.02292275,70753.0,70740.0,0.042397]
[1773508598366,0.02292275,70753.0,70741.0,0.042397]
[1773508599368,0.02246555,70752.0,70739.0,0.042398]
[1773508600658,0.06484176,70751.0,70737.0,0.042399]
[1773508600863,0.11761475,70750.0,70737.0,0.042399]
[1773508601071,0.0014,70750.0,70738.0,0.042398]
[1773508601762,0.0014,70750.0,70739.0,0.042398]
[1773508604072,0.0014,70750.0,70741.0,0.042397]
[1773508604668,0.02241255,70763.0,70745.0,0.042394]
[1773508604869,0.0014,70762.0,70745.0,0.042394]
[1773508605265,0.02241255,70763.0,70745.0,0.042394]
[1773508605466,0.0014,70762.0,70745.0,0.042394]
[1773508605666,0.042387,70758.0,70745.0,0.042394]
[1773508605965,0.0014,70757.0,70745.0,0.042394]
[1773508606273,0.0014,70756.0,70745.0,0.042394]
[1773508606667,0.0014,70755.0,70745.0,0.042394]
[1773508607073,0.042387,70758.0,70745.0,0.042394]
[1773508607273,0.0014,70757.0,70745.0,0.042394]
[1773508607667,0.0014,70756.0,70743.0,0.042396]
[1773508607873,0.09627736,70760.0,70743.0,0.042396]
[1773508607874,0.0014,70755.0,70743.0,0.042396]
[1773508608074,0.02245461,70757.0,70743.0,0.042396]
[1773508608374,0.0014,70756.0,70743.0,0.042396]
[1773508608761,0.0014,70756.0,70745.0,0.042395]
[1773508621884,0.0014,70756.0,70743.0,0.042395]
[1773508622084,0.043788,70756.0,70743.0,0.042395]
[1773508627485,0.0014,70755.0,70747.0,0.01486416]
[1773508627787,0.042388,70757.0,70744.0,0.042395]
[1773508627990,0.0014,70756.0,70744.0,0.042395]
[1773508641292,0.0014,70756.0,70727.0,0.00992086]
[1773508641499,0.0014,70756.0,70720.0,0.25440988]
[1773508641500,0.11621975,70741.0,70729.0,0.042404]
[1773508641688,0.20503965,70740.0,70723.0,0.00992086]
[1773508641889,0.20503965,70739.0,70723.0,0.00992086]
[1773508642192,0.20363965,70738.0,70733.0,0.042402]
[1773508642596,0.20363965,70738.0,70734.0,0.042401]
[1773508643093,0.20363965,70738.0,70726.0,0.0101856]
[1773508644291,0.0014,70737.0,70726.0,0.0101856]
[1773508644488,6.5e-07,70736.0,70726.0,0.0101856]
[1773508644689,0.0014,70737.0,70726.0,0.0101856]
[1773508644996,0.0014,70737.0,70733.0,0.042401]
[1773508646295,0.0014,70736.0,70733.0,0.042401]
[1773508646599,0.0014,70735.0,70733.0,0.042401]
[1773508646799,0.0014,70734.0,70733.0,0.042401]
[1773508647096,0.0014,70734.0,70733.0,0.0353232]
[1773508649905,0.0014,70735.0,70733.0,0.0353232]
[1773508650306,0.0014,70734.0,70733.0,0.0353232]
[1773508655819,0.0014,70734.0,70722.0,0.02323662]
[1773508656020,0.0014,70734.0,70725.0,0.042406]
[1773508656418,0.19887994,70733.0,70725.0,0.042406]
[1773508656619,0.0014,70734.0,70718.0,0.02323662]
[1773508656620,0.19887994,70732.0,70718.0,0.02323662]
[1773508656818,0.19887994,70731.0,70727.0,0.042405]
[1773508657021,9.4e-07,70730.0,70727.0,0.042405]
[1773508657323,0.0014,70734.0,70727.0,0.042405]
[1773508659521,0.0042,70733.0,70727.0,0.042405]
[1773508659824,0.0042,70733.0,70721.0,0.02323662]
[1773508660321,0.0042,70733.0,70717.0,0.02323662]
[1773508660525,0.0014,70734.0,70717.0,0.02323662]
[1773508662029,0.0014,70734.0,70722.0,0.042408]
[1773508662827,0.0014,70734.0,70723.0,0.042408]
[1773508664423,0.0014,70734.0,70724.0,0.042407]
[1773508664829,0.0014,70734.0,70713.0,0.00585873]
[1773508664830,0.0042,70730.0,70720.0,0.04241]
[1773508665024,0.0042,70730.0,70721.0,0.042409]
[1773508665724,0.042402,70733.0,70721.0,0.042409]
[1773508666324,0.042402,70733.0,70713.0,0.02323662]
[1773508666531,0.0042,70729.0,70713.0,0.02323662]
[1773508666932,0.0042,70729.0,70721.0,0.042409]
[1773508668525,0.0042,70729.0,70722.0,0.042408]
[1773508668725,0.0042,70729.0,70720.0,0.04241]
[1773508668931,0.21801885,70728.0,70720.0,0.04241]
[1773508669131,0.21941885,70727.0,70720.0,0.04241]
[1773508669330,0.21801885,70726.0,70721.0,0.042409]
[1773508670327,0.21801885,70726.0,70722.0,0.042408]
[1773508676639,0.21801885,70726.0,70713.0,0.02323662]
[1773508676937,0.22221885,70726.0,70722.0,0.042408]
[1773508677128,0.21801885,70725.0,70722.0,0.042408]
[1773508677333,8.5e-07,70724.0,70722.0,0.042408]
[1773508677630,0.0042,70726.0,70722.0,0.042408]
[1773508678741,0.0014,70727.0,70722.0,0.042408]
[1773508681240,0.0014,70727.0,70713.0,0.02323662]
[1773508681536,0.0014,70727.0,70721.0,0.042409]
[1773508684129,0.042401,70734.0,70721.0,0.042409]
[1773508684336,0.0014,70733.0,70721.0,0.042409]
[1773508686536,0.0014,70733.0,70716.0,0.02971451]
[1773508686937,0.0014,70733.0,70722.0,0.042408]
[1773508689339,0.20810693,70732.0,70722.0,0.042408]
[1773508689639,0.20810693,70731.0,70722.0,0.042408]
[1773508689832,0.20810693,70730.0,70722.0,0.042408]
[1773508690031,0.20810693,70729.0,70722.0,0.042408]
[1773508690229,0.0014,70733.0,70722.0,0.042408]
[1773508690230,0.20810693,70728.0,70722.0,0.042408]
[1773508690436,0.20810693,70727.0,70722.0,0.042408]
[1773508690638,0.20950693,70726.0,70722.0,0.042408]
[1773508690838,0.00140093,70725.0,70722.0,0.042408]
[1773508691039,0.0014,70724.0,70722.0,0.042408]
[1773508691328,0.042401,70734.0,70722.0,0.042408]
[1773508691524,0.0014,70733.0,70722.0,0.042408]
[1773508692840,0.0014,70733.0,70722.0,0.043408]
[1773508693538,0.0014,70732.0,70722.0,0.043408]
[1773508694238,0.0014,70732.0,70722.0,0.042408]
[1773508694842,0.0014,70731.0,70722.0,0.042408]
[1773508698749,0.042401,70734.0,70722.0,0.042408]
[1773508698943,0.0014,70730.0,70722.0,0.042408]
[1773508706444,0.0014,70730.0,70720.0,0.042409]
[1773508707954,0.0014,70730.0,70721.0,0.042409]
[1773508708751,0.042402,70733.0,70721.0,0.042409]
[1773508708945,0.0014,70732.0,70721.0,0.042409]
[1773508718263,0.07385095,70731.0,70721.0,0.042409]
[1773508724061,0.0014,70732.0,70721.0,0.042409]
[1773508729273,0.07385095,70731.0,70721.0,0.042409]
[1773508731470,0.042406,70727.0,70711.0,0.03197465]
[1773508731671,0.042406,70727.0,70706.0,0.0014]
[1773508731672,0.07385095,70720.0,70713.0,0.042414]
[1773508731871,0.0014,70719.0,70713.0,0.042414]
[1773508732876,0.0014,70719.0,70706.0,0.03197465]
[1773508733379,0.0014,70719.0,70711.0,0.042415]
[1773508747295,0.042408,70724.0,70711.0,0.042415]
[1773508747296,0.042408,70724.0,70712.0,0.03197465]
[1773508747493,0.0014,70723.0,70712.0,0.07438865]
[1773508747680,0.0014,70723.0,70712.0,0.042414]
[1773508747880,0.0014,70723.0,70713.0,0.03197465]
[1773508757399,0.0014,70722.0,70713.0,0.03197465]
[1773508761390,0.0014,70722.0,70713.0,0.07438865]
[1773508761689,0.0014,70722.0,70713.0,0.03197465]
[1773508762301,0.0014,70722.0,70711.0,0.042415]
[1773508763698,0.042408,70724.0,70711.0,0.042415]
[1773508763900,0.0014,70723.0,70711.0,0.042415]
[1773508776506,0.0014,70723.0,70711.0,0.07181251]
[1773508776808,0.0014,70723.0,70712.0,0.042414]
[1773508777004,0.0014,70723.0,70713.0,0.02939751]
[1773508784413,0.0014,70723.0,70696.0,0.02939751]
[1773508786012,0.0014,70723.0,70711.0,0.042415]
[1773508786412,0.0014,70723.0,70712.0,0.042414]
[1773508789915,0.0014,70723.0,70713.0,0.042414]
[1773508793212,0.07387441,70730.0,70712.0,0.02635097]
[1773508793420,0.02797878,70735.0,70711.0,0.02635097]
[1773508793421,0.0014,70729.0,70711.0,0.02635097]
[1773508793715,0.042401,70735.0,70711.0,0.0014]
[1773508793915,0.0014,70734.0,70712.0,0.02635097]
[1773508794310,0.001,70730.0,70721.0,0.02635097]
[1773508795115,0.044802,70734.0,70721.0,0.02635097]
[1773508795819,0.044802,70734.0,70721.0,0.06875997]
[1773508796015,0.0024,70734.0,70722.0,0.06873387]
[1773508796218,0.0034,70734.0,70722.0,0.06873387]
[1773508796615,0.001,70730.0,70722.0,0.06873387]
[1773508796815,0.0024,70734.0,70722.0,0.06873387]
[1773508797119,0.001,70734.0,70722.0,0.06873387]
[1773508797314,0.0014,70733.0,70725.0,0.042406]
[1773508797917,0.0014,70732.0,70725.0,0.042406]
[1773508798317,0.001,70734.0,70725.0,0.042406]
[1773508798621,0.0014,70731.0,70725.0,0.042406]
[1773508798826,0.042399,70738.0,70725.0,0.042406]
[1773508799018,0.0014,70737.0,70725.0,0.042406]
[1773508799521,0.0014,70736.0,70725.0,0.042406]
[1773508799923,0.0014,70735.0,70725.0,0.042406]
[1773508800422,0.0014,70734.0,70725.0,0.042406]
[1773508800823,0.042399,70738.0,70725.0,0.042406]
[1773508801025,0.0014,70737.0,70725.0,0.042406]
[1773508801426,0.0014,70736.0,70725.0,0.042406]
[1773508801923,0.0014,70735.0,70725.0,0.042406]
[1773508802324,0.042399,70738.0,70725.0,0.042406]
[1773508802625,0.0014,70737.0,70725.0,0.042406]
[1773508802822,0.042399,70738.0,70725.0,0.042406]
[1773508803022,0.0014,70737.0,70725.0,0.042406]
[1773508803324,0.042399,70738.0,70725.0,0.042406]
[1773508803525,0.0014,70737.0,70725.0,0.042406]
[1773508803721,6.5e-07,70739.0,70721.0,0.02635097]
[1773508803934,0.02797878,70750.0,70720.0,0.07387441]
[1773508803935,0.042394,70746.0,70733.0,0.042401]
[1773508804317,0.0014,70745.0,70733.0,0.042401]
[1773508804926,0.043795,70745.0,70733.0,0.042401]
[1773508805729,0.042395,70745.0,70733.0,0.042401]
[1773508805928,0.0014,70744.0,70733.0,0.042401]
[1773508807827,0.0014,70744.0,70731.0,0.042403]
[1773508808930,0.043795,70744.0,70731.0,0.042403]
[1773508809428,0.042395,70744.0,70732.0,0.042402]
[1773508809623,0.0014,70743.0,70733.0,0.02635097]
[1773508811632,0.042394,70746.0,70733.0,0.02635097]
[1773508811936,0.0014,70745.0,70733.0,0.02635097]
[1773508812233,0.0014,70744.0,70733.0,0.02635097]
[1773508812623,0.0014,70743.0,70733.0,0.02635097]
[1773508813029,0.042394,70746.0,70734.0,0.042401]
[1773508813224,0.0014,70745.0,70734.0,0.042401]
[1773508813626,0.0014,70744.0,70734.0,0.042401]
[1773508814026,0.042394,70746.0,70734.0,0.042401]
[1773508814330,0.0014,70745.0,70734.0,0.042401]
[1773508814534,0.042394,70746.0,70734.0,0.042401]
[1773508814732,0.0014,70745.0,70734.0,0.042401]
[1773508814922,0.042394,70746.0,70734.0,0.042401]
[1773508815128,0.042393,70748.0,70721.0,0.02635097]
[1773508815332,0.0014,70747.0,70721.0,0.02635097]
[1773508815731,0.042393,70748.0,70721.0,0.02635097]
[1773508815937,0.043794,70747.0,70734.0,0.042401]
[1773508816235,0.042394,70747.0,70734.0,0.042401]
[1773508816428,0.0014,70746.0,70735.0,0.0424]
[1773508816825,0.0014,70745.0,70735.0,0.0424]
[1773508817229,0.043394,70747.0,70735.0,0.0424]
[1773508817535,0.0014,70746.0,70735.0,0.0424]
[1773508817733,0.043394,70747.0,70735.0,0.0424]
[1773508817929,0.0014,70746.0,70735.0,0.0424]
[1773508818334,0.043394,70747.0,70735.0,0.0424]
[1773508818536,0.0014,70745.0,70735.0,0.0424]
[1773508818829,0.042394,70747.0,70735.0,0.0424]
[1773508819034,0.0014,70744.0,70735.0,0.0424]
[1773508819429,0.0014,70743.0,70735.0,0.0424]
[1773508819828,0.042394,70747.0,70735.0,0.0424]
[1773508820031,0.0014,70742.0,70735.0,0.0424]
[1773508820432,0.0014,70741.0,70733.0,0.042401]
[1773508820930,0.0014,70740.0,70733.0,0.042401]
[1773508821437,0.0014,70739.0,70733.0,0.042401]
[1773508822331,0.042394,70746.0,70733.0,0.042401]
[1773508822640,0.0014,70745.0,70733.0,0.042401]
[1773508824232,0.0014,70745.0,70734.0,0.042401]
[1773508825231,0.042394,70746.0,70734.0,0.042401]
[1773508825430,0.0014,70745.0,70734.0,0.042401]
[1773508825839,0.0014,70744.0,70734.0,0.042401]
[1773508826339,0.0014,70743.0,70734.0,0.042401]
[1773508826838,0.0014,70742.0,70734.0,0.042401]
[1773508827335,0.0014,70741.0,70734.0,0.042401]
[1773508827735,0.042394,70746.0,70734.0,0.042401]
[1773508827939,0.0014,70745.0,70734.0,0.042401]
[1773508828231,0.042394,70746.0,70734.0,0.042401]
[1773508828436,0.0014,70745.0,70734.0,0.042401]
[1773508829041,0.042394,70746.0,70734.0,0.042401]
[1773508829242,0.0014,70745.0,70734.0,0.042401]
[1773508829642,0.0014,70744.0,70734.0,0.042401]
[1773508830148,0.0014,70743.0,70734.0,0.042401]
[1773508830536,0.042394,70746.0,70734.0,0.042401]
[1773508830745,0.0014,70745.0,70734.0,0.042401]
[1773508831445,0.042394,70746.0,70734.0,0.042401]
[1773508831641,0.0014,70744.0,70734.0,0.042401]
[1773508832041,0.0014,70743.0,70734.0,0.042401]
[1773508832543,0.0014,70742.0,70734.0,0.042401]
[1773508832947,0.042394,70746.0,70734.0,0.042401]
[1773508833142,0.0014,70745.0,70734.0,0.042401]
[1773508833445,0.042394,70746.0,70734.0,0.042401]
[1773508833646,0.0014,70745.0,70734.0,0.042401]
[1773508834149,0.042394,70746.0,70734.0,0.042401]
[1773508834347,0.0014,70745.0,70734.0,0.042401]
[1773508834649,0.042394,70746.0,70734.0,0.042401]
[1773508834848,0.0014,70745.0,70734.0,0.042401]
[1773508835148,0.042394,70746.0,70734.0,0.042401]
[1773508835343,0.0014,70745.0,70734.0,0.042401]
[1773508835652,0.042394,70746.0,70734.0,0.042401]
[1773508835841,0.0014,70745.0,70734.0,0.042401]
[1773508836152,0.042394,70746.0,70734.0,0.042401]
[1773508836351,0.0014,70745.0,70734.0,0.042401]
[1773508836645,0.042394,70746.0,70734.0,0.042401]
[1773508836847,0.0014,70745.0,70734.0,0.042401]
[1773508837450,0.0014,70744.0,70734.0,0.042401]
[1773508837746,0.042394,70746.0,70734.0,0.042401]
[1773508837951,0.0014,70743.0,70734.0,0.042401]
[1773508838352,0.0014,70742.0,70734.0,0.042401]
[1773508838749,0.042394,70746.0,70734.0,0.042401]
[1773508838952,0.0014,70741.0,70734.0,0.042401]
[1773508839355,0.0014,70740.0,70734.0,0.042401]
[1773508839554,0.0014,70740.0,70735.0,0.0424]
[1773508839750,0.042393,70748.0,70735.0,0.0424]
[1773508839963,0.0014,70747.0,70735.0,0.0424]
[1773508840353,0.0014,70746.0,70735.0,0.0424]
[1773508840755,0.042393,70748.0,70735.0,0.0424]
[1773508841058,0.0014,70745.0,70735.0,0.0424]
[1773508841246,0.042393,70748.0,70735.0,0.0424]
[1773508841458,0.0014,70744.0,70735.0,0.0424]
[1773508841758,0.042393,70748.0,70735.0,0.0424]
[1773508841960,0.0014,70743.0,70735.0,0.0424]
[1773508842659,0.042393,70748.0,70735.0,0.0424]
[1773508842860,0.0014,70747.0,70735.0,0.0424]
[1773508843158,0.0014,70746.0,70735.0,0.0424]
[1773508843751,0.0014,70745.0,70735.0,0.0424]
[1773508844359,0.0014,70744.0,70735.0,0.0424]
[1773508844654,0.042393,70748.0,70735.0,0.0424]
[1773508844859,0.0014,70743.0,70735.0,0.0424]
[1773508845159,0.042393,70748.0,70735.0,0.0424]
[1773508845359,0.0014,70747.0,70735.0,0.0424]
[1773508845755,0.0014,70746.0,70735.0,0.0424]
[1773508846358,0.0014,70745.0,70735.0,0.0424]
[1773508846660,0.042393,70748.0,70735.0,0.0424]
[1773508846855,0.0014,70747.0,70735.0,0.0424]
[1773508847256,0.0014,70746.0,70735.0,0.0424]
[1773508847659,0.042393,70748.0,70735.0,0.0424]
[1773508847860,0.0014,70747.0,70735.0,0.0424]
[1773508848361,0.0014,70746.0,70735.0,0.0424]
[1773508848661,0.042393,70748.0,70735.0,0.0424]
[1773508848861,0.0014,70747.0,70736.0,0.0424]
[1773508849057,0.4232092,70753.0,70741.0,0.042397]
[1773508849360,0.0014,70752.0,70741.0,0.042397]
[1773508849754,0.04239,70754.0,70741.0,0.042397]
[1773508850059,0.0014,70753.0,70741.0,0.042397]
[1773508850261,0.04239,70754.0,70741.0,0.042397]
[1773508850462,0.0014,70753.0,70741.0,0.042397]
[1773508850662,0.04239,70754.0,70741.0,0.042397]
[1773508850963,0.0014,70752.0,70741.0,0.042397]
[1773508851164,0.04239,70754.0,70741.0,0.042397]
[1773508851355,0.04379,70753.0,70741.0,0.042397]
[1773508851753,0.0014,70752.0,70741.0,0.042397]
[1773508853263,0.4246092,70752.0,70741.0,0.042397]
[1773508859957,0.4246092,70752.0,70742.0,0.042396]
[1773508859958,0.0014,70752.0,70742.0,0.042396]
[1773508866078,0.02831642,70744.0,70732.0,0.03697436]
[1773508866375,0.02831642,70744.0,70721.0,0.02894654]
[1773508866376,0.07382405,70740.0,70721.0,0.02894654]
[1773508867979,0.07382405,70740.0,70733.0,0.042402]
[1773508870368,0.07522405,70743.0,70733.0,0.042402]
[1773508870862,0.07382405,70743.0,70733.0,0.042402]
[1773508871062,0.0014,70742.0,70733.0,0.042402]
[1773508879673,0.0014,70742.0,70734.0,0.042401]
[1773508881981,0.0014,70742.0,70728.0,0.02795109]
[1773508882580,0.49703325,70750.0,70720.0,0.07382405]
[1773508882581,0.11621605,70750.0,70739.0,0.042398]
[1773508882781,0.0014,70749.0,70739.0,0.042398]
[1773508882979,0.0014,70749.0,70737.0,0.042399]
[1773508883180,0.043793,70749.0,70737.0,0.042399]
[1773508883485,0.042393,70748.0,70735.0,0.0424]
[1773508885588,0.042393,70748.0,70736.0,0.0424]
[1773508887787,0.042393,70748.0,70737.0,0.042399]
[1773508897488,0.02676668,70748.0,70729.0,0.02795109]
[1773508897694,0.07382919,70740.0,70724.0,0.02795109]
[1773508897896,0.0014,70739.0,70722.0,0.02795109]
[1773508898094,0.0014,70738.0,70722.0,0.02795109]
[1773508898489,0.0014,70738.0,70733.0,0.042401]
[1773508905005,0.0014,70738.0,70734.0,0.042401]
[1773508909607,0.0014,70737.0,70735.0,0.0424]
[1773508909802,0.042394,70746.0,70735.0,0.0424]
[1773508910109,0.0014,70745.0,70735.0,0.0424]
[1773508913707,0.042393,70748.0,70737.0,0.042399]
[1773508913911,0.0014,70747.0,70737.0,0.042399]
[1773508939439,0.0014,70747.0,70731.0,0.02578805]
[1773508939440,0.0014,70747.0,70738.0,0.042399]
[1773508943237,0.4246092,70747.0,70734.0,0.01533207]
[1773508944938,0.4246092,70747.0,70738.0,0.042399]
[1773508953237,0.0014,70747.0,70738.0,0.042399]
[1773508955643,0.0014,70747.0,70730.0,0.01399267]
[1773508955644,0.0014,70747.0,70739.0,0.042398]
[1773508960448,0.07382505,70750.0,70739.0,0.042398]
[1773508960647,0.0014,70746.0,70739.0,0.042398]
[1773508963949,0.07382505,70750.0,70739.0,0.042398]
[1773508964151,0.0014,70749.0,70739.0,0.042398]
[1773508972657,0.04239,70754.0,70725.0,0.042406]
[1773508972950,0.0014,70748.0,70726.0,0.01021675]
[1773508973150,0.0014,70748.0,70727.0,0.0014]
[1773508973349,0.0014,70748.0,70728.0,0.00978543]
[1773508973655,0.0014,70748.0,70742.0,0.042396]
[1773508973861,0.0014,70747.0,70743.0,0.00966849]
[1773508974048,0.0014,70746.0,70743.0,0.00966849]
[1773508974359,0.0014,70745.0,70742.0,0.03624078]
[1773508974556,0.0014,70744.0,70742.0,0.02565631]
[1773508974854,0.0014,70743.0,70742.0,0.02565631]
[1773508975447,0.04239,70754.0,70742.0,0.02565631]
[1773508975649,0.0014,70748.0,70742.0,0.02565631]
[1773508978963,0.0014,70748.0,70733.0,0.00176873]
[1773508979162,0.0014,70753.0,66842.0,0.0014955]
[1773508979163,0.0424,70736.0,70717.0,0.00176873]
[1773508979349,0.07382505,70730.0,70717.0,0.00176873]
[1773508979659,0.0014,70729.0,70717.0,0.00176873]
[1773508980048,0.0014,70728.0,70717.0,0.00176873]
[1773508980364,0.0014,70727.0,70717.0,0.00176873]
[1773508980561,0.0014,70726.0,70719.0,0.00213936]
[1773508980750,0.11622305,70740.0,70727.0,0.042405]
[1773508981159,0.0042,70733.0,70727.0,0.042405]
[1773508981460,0.0014,70732.0,70727.0,0.042405]
[1773508981656,0.0014,70732.0,70725.0,0.042407]
[1773508982967,0.0014,70732.0,70723.0,0.042408]
[1773508984460,0.0014,70731.0,70724.0,0.042407]
[1773508984659,0.0014,70730.0,70724.0,0.042407]
[1773508984858,0.0014,70729.0,70724.0,0.042407]
[1773508985054,0.0014,70728.0,70724.0,0.042407]
[1773508985357,0.042398,70739.0,70724.0,0.042407]
[1773508985663,0.0014,70738.0,70724.0,0.042407]
[1773508988063,0.0056,70735.0,70726.0,0.0461854]
[1773508988465,0.0014,70738.0,70726.0,0.0461854]
[1773508990060,0.0014,70738.0,70726.0,0.042406]
[1773508992163,0.0014,70737.0,70726.0,0.042406]
[1773508992365,0.0056,70736.0,70726.0,0.042406]
[1773508999663,0.0056,70736.0,70726.0,0.04422122]
[1773509000366,0.0014,70737.0,70726.0,0.04422122]
[1773509001672,0.042398,70739.0,70726.0,0.04422122]
[1773509001967,0.0056,70736.0,70726.0,0.04422122]
[1773509002566,0.42421993,70740.0,70728.0,0.042405]
[1773509002781,0.0014,70739.0,70732.0,9.376e-05]
[1773509004665,0.0014,70739.0,70731.0,0.042403]
[1773509004870,0.0014,70739.0,70729.0,0.042404]
[1773509005474,0.0014,70739.0,70730.0,0.042403]
[1773509009976,0.0014,70739.0,70731.0,0.042403]
[1773509013580,0.042396,70743.0,70731.0,0.042403]
[1773509013881,0.0014,70742.0,70731.0,0.042403]
[1773509016982,0.042396,70743.0,70731.0,0.042403]
[1773509017184,0.0014,70741.0,70731.0,0.042403]
[1773509022489,0.0014,70741.0,70731.0,0.04270305]
[1773509025795,0.46661393,70747.0,70722.0,0.042408]
[1773509026097,0.12886925,70749.0,70737.0,0.03694908]
[1773509026098,0.0014,70746.0,70737.0,0.03694908]
[1773509026498,0.17126225,70749.0,70737.0,0.03694908]
[1773509026798,0.0014,70748.0,70737.0,0.03694908]
[1773509027295,0.12886925,70749.0,70720.0,0.07383793]
[1773509027500,0.042392,70750.0,70720.0,0.07383793]
[1773509027795,0.0014,70749.0,70720.0,0.07383793]
[1773509028099,0.0014,70748.0,70736.0,0.0424]
[1773509032304,0.042393,70749.0,70736.0,0.0424]
[1773509032506,0.0014,70748.0,70736.0,0.0424]
[1773509033297,0.42421993,70746.0,70736.0,0.0424]
[1773509034205,0.42421993,70746.0,70720.0,0.07383793]
[1773509034592,0.42421993,70746.0,70735.0,0.0424]
[1773509041304,0.0014,70745.0,70735.0,0.0424]
[1773509047614,0.0014,70745.0,70738.0,0.042399]
[1773509047914,0.0014,70745.0,70736.0,0.0424]
[1773509048317,0.042392,70749.0,70736.0,0.0424]
[1773509048516,0.0014,70744.0,70736.0,0.0424]
[1773509048717,0.0014,70744.0,70737.0,0.042399]
[1773509048915,0.0014,70743.0,70737.0,0.042399]
[1773509049316,0.042392,70749.0,70737.0,0.042399]
[1773509049512,0.0014,70748.0,70737.0,0.042399]
[1773509049918,0.0014,70747.0,70737.0,0.042399]
[1773509074430,0.042392,70749.0,70737.0,0.042399]
[1773509074635,0.0014,70746.0,70737.0,0.042399]
[1773509078540,0.0014,70746.0,70738.0,0.042398]
[1773509078743,0.0014,70745.0,70738.0,0.042398]
[1773509079240,0.0014,70744.0,70738.0,0.042398]
[1773509080640,0.0014,70744.0,70736.0,0.0424]
[1773509081648,0.0014,70744.0,70737.0,0.042399]
[1773509081846,0.0014,70743.0,70737.0,0.042399]
[1773509083242,0.0014,70743.0,70720.0,0.0738257]
[1773509083649,0.42421993,70745.0,70720.0,0.0738257]
[1773509083842,0.0014,70744.0,70720.0,0.0738257]
[1773509084147,0.42421993,70745.0,70737.0,0.042399]
[1773509084340,0.0014,70744.0,70737.0,0.042399]
[1773509089750,0.0014,70744.0,70724.0,0.0014]
[1773509091056,0.0014,70743.0,70724.0,0.0014]
[1773509091548,0.0014,70742.0,70724.0,0.0014]
[1773509092055,0.0014,70741.0,70737.0,0.042399]
[1773509092551,0.42421993,70745.0,70737.0,0.042399]
[1773509092757,0.0014,70744.0,70737.0,0.042399]
[1773509092958,0.42421993,70745.0,70737.0,0.042399]
[1773509093148,0.0014,70744.0,70737.0,0.042399]
[1773509093548,0.0014,70743.0,70737.0,0.042399]
[1773509093751,0.0014,70742.0,70737.0,0.042399]
[1773509093950,0.1162177,70750.0,70737.0,0.042399]
[1773509094152,0.0014,70749.0,70737.0,0.042399]
[1773509094349,0.0014,70748.0,70739.0,0.042398]